Department Family,Entity,Payment Date,Expense Type,Expense Area,Supplier,Transaction Number,Amount,Invoice Description,Postal Code,"Capital, Programme or Admin Expenditure"
Food Standards Agency,Food Standards Agency,02/05/2013,Programme Evidence & Research Expenditure,Food Production Branch,University Of Warwick,90663325,"47,229.00",PO 402398 REF 144340 PROJECT FS990010 (M03039),CV4 7AL,Programme
Food Standards Agency,Food Standards Agency,02/05/2013,Programme Evidence & Research Expenditure,Food Production Branch,University Of Warwick,90663325,"9,445.80",PO 402398 REF 144340 PROJECT FS990010 (M03039),CV4 7AL,Programme
Food Standards Agency,Food Standards Agency,07/05/2013,Programme Evidence & Research Expenditure,Delivery,Lancashire County Council,5200026475,"31,550.40",PO 408255 RICK-BASED FOOD & FEED SAMPLING 12/13,PR1 0LD,Programme
Food Standards Agency,Food Standards Agency,07/05/2013,Laundry,Operational Delivery,Apparelmaster UK Ltd,47594,"26,763.29",PO 407992-CONSOLIDATED INVOICE-REGION 546-WORKWEAR RENTAL AND LAUNDRY SERVICE,PR2 9ZD,Programme
Food Standards Agency,Food Standards Agency,07/05/2013,Laundry,Operational Delivery,Apparelmaster UK Ltd,47594,"5,352.66",PO 407992-CONSOLIDATED INVOICE-REGION 546-WORKWEAR RENTAL AND LAUNDRY SERVICE,PR2 9ZD,Programme
Food Standards Agency,Food Standards Agency,07/05/2013,Laundry,Operational Delivery,Apparelmaster UK Ltd,47594,-0.02,PO 407992-CONSOLIDATED INVOICE-REGION 546-WORKWEAR RENTAL AND LAUNDRY SERVICE,PR2 9ZD,Programme
Food Standards Agency,Food Standards Agency,07/05/2013,Project Programme expenditure,Contaminants Policy & Strategy Unit,C E F A S,8002816,"200,766.00",PO 408473 C2704 JAN-MAR 2013,NR33 0HT,Programme
Food Standards Agency,Food Standards Agency,07/05/2013,Project Programme expenditure,Contaminants Policy & Strategy Unit,C E F A S,8002816,"40,153.20",PO 408473 C2704 JAN-MAR 2013,NR33 0HT,Programme
Food Standards Agency,Food Standards Agency,07/05/2013,Mobile phone charges,IT Service Delivery,Vodafone Ltd,66644287,"42,685.21",DEC / JAN / FEB MOBILE CHARGES,RG14 5FF,Admin
Food Standards Agency,Food Standards Agency,07/05/2013,Mobile phone charges,IT Service Delivery,Vodafone Ltd,66644287,"8,537.04",DEC / JAN / FEB MOBILE CHARGES,RG14 5FF,Admin
Food Standards Agency,Food Standards Agency,07/05/2013,Mobile phone charges,IT Service Delivery,Vodafone Ltd,66644287,"1,276.40",DEC / JAN / FEB MOBILE CHARGES,RG14 5FF,Admin
Food Standards Agency,Food Standards Agency,09/05/2013,Programme Evidence & Research Expenditure,Contaminants Policy & Strategy Unit,Smithers Rapra & Smithers Pira Ltd,RINV00101944,"25,920.00",PO 402532 PROJECT FSA241007 1/3/11-28/2/13,KT22 7RU,Programme
Food Standards Agency,Food Standards Agency,09/05/2013,Programme Evidence & Research Expenditure,Contaminants Policy & Strategy Unit,Smithers Rapra & Smithers Pira Ltd,RINV00101944,"5,184.00",PO 402532 PROJECT FSA241007 1/3/11-28/2/13,KT22 7RU,Programme
Food Standards Agency,Food Standards Agency,09/05/2013,Archiving - Storage & Distribution,Information and Knowledge Management,T N T International,9554572,"24,989.85",PO 407577ACC 37000 MARCH 2013,BL0 9GR,Admin
Food Standards Agency,Food Standards Agency,10/05/2013,Programme Evidence & Research Expenditure,Delivery,Hampshire County Council,3610500902,"32,566.92",PO 409455 FOOD/FEED SAMPLING PROGRAMME 12/13,SO23 8UB,Programme
Food Standards Agency,Food Standards Agency,14/05/2013,Travel UK ,Area 1 Scotland - Cluster 11,Capita Business Travel Ltd,LI528164,435.98,Consolidated Travel 13/04/2013 - 28/04/2013,DE21 6BF,Programme
Food Standards Agency,Food Standards Agency,14/05/2013,Travel UK ,Area 1 Scotland - Cluster 12,Capita Business Travel Ltd,LI528164,347.00,Consolidated Travel 13/04/2013 - 28/04/2013,DE21 6BF,Programme
Food Standards Agency,Food Standards Agency,14/05/2013,Travel UK ,Area 1 Scotland - Cluster 13,Capita Business Travel Ltd,LI528164,175.30,Consolidated Travel 13/04/2013 - 28/04/2013,DE21 6BF,Programme
Food Standards Agency,Food Standards Agency,14/05/2013,Travel UK ,Area 1 Scotland - Cluster 15,Capita Business Travel Ltd,LI528164,253.00,Consolidated Travel 13/04/2013 - 28/04/2013,DE21 6BF,Programme
Food Standards Agency,Food Standards Agency,14/05/2013,Travel UK ,Area 2 Wales - Cluster 21,Capita Business Travel Ltd,LI528164,549.80,Consolidated Travel 13/04/2013 - 28/04/2013,DE21 6BF,Programme
Food Standards Agency,Food Standards Agency,14/05/2013,Travel UK ,Area 3 North West England - Cluster 31,Capita Business Travel Ltd,LI528164,67.50,Consolidated Travel 13/04/2013 - 28/04/2013,DE21 6BF,Programme
Food Standards Agency,Food Standards Agency,14/05/2013,Travel UK ,Area 3 North West England - Cluster 33,Capita Business Travel Ltd,LI528164,46.10,Consolidated Travel 13/04/2013 - 28/04/2013,DE21 6BF,Programme
Food Standards Agency,Food Standards Agency,14/05/2013,Travel UK ,Area 3 North West England - Cluster 36,Capita Business Travel Ltd,LI528164,46.50,Consolidated Travel 13/04/2013 - 28/04/2013,DE21 6BF,Programme
Food Standards Agency,Food Standards Agency,14/05/2013,Travel UK ,Area 4 North East England - Cluster 41,Capita Business Travel Ltd,LI528164,-120.50,Consolidated Travel 13/04/2013 - 28/04/2013,DE21 6BF,Programme
Food Standards Agency,Food Standards Agency,14/05/2013,Travel UK ,Area 4 North East England - Cluster 44,Capita Business Travel Ltd,LI528164,381.30,Consolidated Travel 13/04/2013 - 28/04/2013,DE21 6BF,Programme
Food Standards Agency,Food Standards Agency,14/05/2013,Travel UK ,Area 4 North East England - Cluster 47,Capita Business Travel Ltd,LI528164,179.40,Consolidated Travel 13/04/2013 - 28/04/2013,DE21 6BF,Programme
Food Standards Agency,Food Standards Agency,14/05/2013,Travel UK ,Area 5 South West England - Cluster 51,Capita Business Travel Ltd,LI528164,59.30,Consolidated Travel 13/04/2013 - 28/04/2013,DE21 6BF,Programme
Food Standards Agency,Food Standards Agency,14/05/2013,Travel UK ,Area 5 South West England - Cluster 52,Capita Business Travel Ltd,LI528164,444.60,Consolidated Travel 13/04/2013 - 28/04/2013,DE21 6BF,Programme
Food Standards Agency,Food Standards Agency,14/05/2013,Travel UK ,Area 5 South West England - Cluster 53,Capita Business Travel Ltd,LI528164,53.70,Consolidated Travel 13/04/2013 - 28/04/2013,DE21 6BF,Programme
Food Standards Agency,Food Standards Agency,14/05/2013,Travel UK ,Area 5 South West England - Cluster 55,Capita Business Travel Ltd,LI528164,246.90,Consolidated Travel 13/04/2013 - 28/04/2013,DE21 6BF,Programme
Food Standards Agency,Food Standards Agency,14/05/2013,Travel UK ,Area 5 South West England - Cluster 56,Capita Business Travel Ltd,LI528164,193.10,Consolidated Travel 13/04/2013 - 28/04/2013,DE21 6BF,Programme
Food Standards Agency,Food Standards Agency,14/05/2013,Travel UK ,Area 5 South West England - Cluster 57,Capita Business Travel Ltd,LI528164,71.40,Consolidated Travel 13/04/2013 - 28/04/2013,DE21 6BF,Programme
Food Standards Agency,Food Standards Agency,14/05/2013,Travel UK ,Area 6 South East England - Cluster 61,Capita Business Travel Ltd,LI528164,344.20,Consolidated Travel 13/04/2013 - 28/04/2013,DE21 6BF,Programme
Food Standards Agency,Food Standards Agency,14/05/2013,International Travel,Area 6 South East England - Cluster 61,Capita Business Travel Ltd,LI528164,208.01,Consolidated Travel 13/04/2013 - 28/04/2013,DE21 6BF,Programme
Food Standards Agency,Food Standards Agency,14/05/2013,Travel UK ,Area 6 South East England - Cluster 62,Capita Business Travel Ltd,LI528164,292.50,Consolidated Travel 13/04/2013 - 28/04/2013,DE21 6BF,Programme
Food Standards Agency,Food Standards Agency,14/05/2013,Travel UK ,Area 6 South East England - Cluster 63,Capita Business Travel Ltd,LI528164,289.50,Consolidated Travel 13/04/2013 - 28/04/2013,DE21 6BF,Programme
Food Standards Agency,Food Standards Agency,14/05/2013,Travel UK ,Area 6 South East England - Cluster 64,Capita Business Travel Ltd,LI528164,330.00,Consolidated Travel 13/04/2013 - 28/04/2013,DE21 6BF,Programme
Food Standards Agency,Food Standards Agency,14/05/2013,Travel UK ,Area 6 South East England - Cluster 65,Capita Business Travel Ltd,LI528164,461.80,Consolidated Travel 13/04/2013 - 28/04/2013,DE21 6BF,Programme
Food Standards Agency,Food Standards Agency,14/05/2013,Travel UK ,Area 6 South East England - Cluster 66,Capita Business Travel Ltd,LI528164,529.60,Consolidated Travel 13/04/2013 - 28/04/2013,DE21 6BF,Programme
Food Standards Agency,Food Standards Agency,14/05/2013,Travel UK ,Chief Executive & Private Office,Capita Business Travel Ltd,LI528164,607.60,Consolidated Travel 13/04/2013 - 28/04/2013,DE21 6BF,Admin
Food Standards Agency,Food Standards Agency,14/05/2013,International Travel,Chief Executive & Private Office,Capita Business Travel Ltd,LI528164,511.65,Consolidated Travel 13/04/2013 - 28/04/2013,DE21 6BF,Admin
Food Standards Agency,Food Standards Agency,14/05/2013,Travel UK ,Chair & Deputy Chair,Capita Business Travel Ltd,LI528164,88.60,Consolidated Travel 13/04/2013 - 28/04/2013,DE21 6BF,Admin
Food Standards Agency,Food Standards Agency,14/05/2013,Travel UK ,FSA Board,Capita Business Travel Ltd,LI528164,80.40,Consolidated Travel 13/04/2013 - 28/04/2013,DE21 6BF,Admin
Food Standards Agency,Food Standards Agency,14/05/2013,Travel UK ,FSA Board,Capita Business Travel Ltd,LI528164,60.90,Consolidated Travel 13/04/2013 - 28/04/2013,DE21 6BF,Admin
Food Standards Agency,Food Standards Agency,14/05/2013,International Travel,FSA Board,Capita Business Travel Ltd,LI528164,563.28,Consolidated Travel 13/04/2013 - 28/04/2013,DE21 6BF,Admin
Food Standards Agency,Food Standards Agency,14/05/2013,Travel UK ,Legal Branch A,Capita Business Travel Ltd,LI528164,60.80,Consolidated Travel 13/04/2013 - 28/04/2013,DE21 6BF,Admin
Food Standards Agency,Food Standards Agency,14/05/2013,Travel UK ,Investigations,Capita Business Travel Ltd,LI528164,318.60,Consolidated Travel 13/04/2013 - 28/04/2013,DE21 6BF,Admin
Food Standards Agency,Food Standards Agency,14/05/2013,Travel UK ,Chief Scientist,Capita Business Travel Ltd,LI528164,359.70,Consolidated Travel 13/04/2013 - 28/04/2013,DE21 6BF,Admin
Food Standards Agency,Food Standards Agency,14/05/2013,International Travel,Chief Scientist,Capita Business Travel Ltd,LI528164,263.75,Consolidated Travel 13/04/2013 - 28/04/2013,DE21 6BF,Admin
Food Standards Agency,Food Standards Agency,14/05/2013,Travel UK ,Analysis & Research Branch,Capita Business Travel Ltd,LI528164,393.37,Consolidated Travel 13/04/2013 - 28/04/2013,DE21 6BF,Admin
Food Standards Agency,Food Standards Agency,14/05/2013,International Travel,Analysis & Research Branch,Capita Business Travel Ltd,LI528164,26.75,Consolidated Travel 13/04/2013 - 28/04/2013,DE21 6BF,Admin
Food Standards Agency,Food Standards Agency,14/05/2013,Travel UK ,Comms Directors Office,Capita Business Travel Ltd,LI528164,765.90,Consolidated Travel 13/04/2013 - 28/04/2013,DE21 6BF,Admin
Food Standards Agency,Food Standards Agency,14/05/2013,Travel UK ,FSA Operations Director & Support,Capita Business Travel Ltd,LI528164,176.10,Consolidated Travel 13/04/2013 - 28/04/2013,DE21 6BF,Programme
Food Standards Agency,Food Standards Agency,14/05/2013,Travel UK ,Approvals & Veterinary Advice,Capita Business Travel Ltd,LI528164,"1,367.05",Consolidated Travel 13/04/2013 - 28/04/2013,DE21 6BF,Programme
Food Standards Agency,Food Standards Agency,14/05/2013,Travel UK ,LAALD HoD & Support,Capita Business Travel Ltd,LI528164,"2,472.40",Consolidated Travel 13/04/2013 - 28/04/2013,DE21 6BF,Admin
Food Standards Agency,Food Standards Agency,14/05/2013,Car hire expenses (short term),LAALD HoD & Support,Capita Business Travel Ltd,LI528164,170.32,Consolidated Travel 13/04/2013 - 28/04/2013,DE21 6BF,Admin
Food Standards Agency,Food Standards Agency,14/05/2013,Travel UK ,Animal Feed,Capita Business Travel Ltd,LI528164,"1,338.80",Consolidated Travel 13/04/2013 - 28/04/2013,DE21 6BF,Admin
Food Standards Agency,Food Standards Agency,14/05/2013,Travel UK ,Incidents & Food Fraud,Capita Business Travel Ltd,LI528164,74.60,Consolidated Travel 13/04/2013 - 28/04/2013,DE21 6BF,Admin
Food Standards Agency,Food Standards Agency,14/05/2013,Travel UK ,Delivery,Capita Business Travel Ltd,LI528164,918.50,Consolidated Travel 13/04/2013 - 28/04/2013,DE21 6BF,Admin
Food Standards Agency,Food Standards Agency,14/05/2013,Travel UK ,Enforcement and Local Authority Delivery,Capita Business Travel Ltd,LI528164,690.30,Consolidated Travel 13/04/2013 - 28/04/2013,DE21 6BF,Admin
Food Standards Agency,Food Standards Agency,14/05/2013,Travel UK ,Enforcement Policy,Capita Business Travel Ltd,LI528164,360.55,Consolidated Travel 13/04/2013 - 28/04/2013,DE21 6BF,Admin
Food Standards Agency,Food Standards Agency,14/05/2013,Travel UK ,Official Controls & Enforcement Strategy,Capita Business Travel Ltd,LI528164,333.70,Consolidated Travel 13/04/2013 - 28/04/2013,DE21 6BF,Admin
Food Standards Agency,Food Standards Agency,14/05/2013,Travel UK ,Standards Branch,Capita Business Travel Ltd,LI528164,152.10,Consolidated Travel 13/04/2013 - 28/04/2013,DE21 6BF,Admin
Food Standards Agency,Food Standards Agency,14/05/2013,International Travel,Standards Branch,Capita Business Travel Ltd,LI528164,270.59,Consolidated Travel 13/04/2013 - 28/04/2013,DE21 6BF,Admin
Food Standards Agency,Food Standards Agency,14/05/2013,Travel UK ,Operational Delivery,Capita Business Travel Ltd,LI528164,"3,801.10",Consolidated Travel 13/04/2013 - 28/04/2013,DE21 6BF,Programme
Food Standards Agency,Food Standards Agency,14/05/2013,International Travel,Operational Delivery,Capita Business Travel Ltd,LI528164,"2,130.70",Consolidated Travel 13/04/2013 - 28/04/2013,DE21 6BF,Programme
Food Standards Agency,Food Standards Agency,14/05/2013,Travel UK ,Wine Standards,Capita Business Travel Ltd,LI528164,845.70,Consolidated Travel 13/04/2013 - 28/04/2013,DE21 6BF,Programme
Food Standards Agency,Food Standards Agency,14/05/2013,Travel UK ,Central Operations Hub,Capita Business Travel Ltd,LI528164,"1,217.80",Consolidated Travel 13/04/2013 - 28/04/2013,DE21 6BF,Programme
Food Standards Agency,Food Standards Agency,14/05/2013,International Travel,Central Operations Hub,Capita Business Travel Ltd,LI528164,476.15,Consolidated Travel 13/04/2013 - 28/04/2013,DE21 6BF,Programme
Food Standards Agency,Food Standards Agency,14/05/2013,Travel UK ,Contaminants HoD,Capita Business Travel Ltd,LI528164,44.20,Consolidated Travel 13/04/2013 - 28/04/2013,DE21 6BF,Admin
Food Standards Agency,Food Standards Agency,14/05/2013,Travel UK ,Chemical Risk Assessment Unit,Capita Business Travel Ltd,LI528164,291.90,Consolidated Travel 13/04/2013 - 28/04/2013,DE21 6BF,Admin
Food Standards Agency,Food Standards Agency,14/05/2013,Travel UK ,Contaminants Policy & Strategy Unit,Capita Business Travel Ltd,LI528164,748.90,Consolidated Travel 13/04/2013 - 28/04/2013,DE21 6BF,Admin
Food Standards Agency,Food Standards Agency,14/05/2013,Car hire expenses (short term),Contaminants Policy & Strategy Unit,Capita Business Travel Ltd,LI528164,78.37,Consolidated Travel 13/04/2013 - 28/04/2013,DE21 6BF,Admin
Food Standards Agency,Food Standards Agency,14/05/2013,Project Programme expenditure,Contaminants Policy & Strategy Unit,C E F A S,8002449,"183,000.00",PO 400803 ANALYTICAL RESULTS ANNUAL RIFE 2012,NR33 0HT,Programme
Food Standards Agency,Food Standards Agency,14/05/2013,Project Programme expenditure,Contaminants Policy & Strategy Unit,C E F A S,8002449,"36,600.00",PO 400803 ANALYTICAL RESULTS ANNUAL RIFE 2012,NR33 0HT,Programme
Food Standards Agency,Food Standards Agency,14/05/2013,Project Programme expenditure,Contaminants Policy & Strategy Unit,C E F A S,8002449,499.00,PO 400803 ANALYTICAL RESULTS ANNUAL RIFE 2012,NR33 0HT,Programme
Food Standards Agency,Food Standards Agency,14/05/2013,Programme Evidence & Research Expenditure,Contaminants Policy & Strategy Unit,C E F A S,8002841,"47,000.00",PO 408473 COLLECTION OF SAMPLES 1/1/13-31/3/13 FS131005,NR33 0HT,Programme
Food Standards Agency,Food Standards Agency,14/05/2013,Programme Evidence & Research Expenditure,Contaminants Policy & Strategy Unit,C E F A S,8002841,"9,400.00",PO 408473 COLLECTION OF SAMPLES 1/1/13-31/3/13 FS131005,NR33 0HT,Programme
Food Standards Agency,Food Standards Agency,14/05/2013,Travel UK ,Novel Food Unit,Capita Business Travel Ltd,LI528164,263.75,Consolidated Travel 13/04/2013 - 28/04/2013,DE21 6BF,Admin
Food Standards Agency,Food Standards Agency,14/05/2013,International Travel,Novel Food Unit,Capita Business Travel Ltd,LI528164,263.75,Consolidated Travel 13/04/2013 - 28/04/2013,DE21 6BF,Admin
Food Standards Agency,Food Standards Agency,14/05/2013,Travel UK ,Hygiene & Microbiology Division HoD,Capita Business Travel Ltd,LI528164,228.70,Consolidated Travel 13/04/2013 - 28/04/2013,DE21 6BF,Admin
Food Standards Agency,Food Standards Agency,14/05/2013,International Travel,Hygiene & Microbiology Division HoD,Capita Business Travel Ltd,LI528164,349.80,Consolidated Travel 13/04/2013 - 28/04/2013,DE21 6BF,Admin
Food Standards Agency,Food Standards Agency,14/05/2013,Travel UK ,Microbiological Food Safety Branch,Capita Business Travel Ltd,LI528164,-108.00,Consolidated Travel 13/04/2013 - 28/04/2013,DE21 6BF,Admin
Food Standards Agency,Food Standards Agency,14/05/2013,Travel UK ,Food Production Branch,Capita Business Travel Ltd,LI528164,128.30,Consolidated Travel 13/04/2013 - 28/04/2013,DE21 6BF,Admin
Food Standards Agency,Food Standards Agency,14/05/2013,Programme Evidence & Research Expenditure,Food Production Branch,Food & Environment Research Agency,F0029159,"28,239.25",PO 412319 CONTRACT FS231058 DELIVERABLE 05 MONTHLY REPORT,YO41 1LZ,Programme
Food Standards Agency,Food Standards Agency,14/05/2013,Travel UK ,EU Regulatory Reform Branch,Capita Business Travel Ltd,LI528164,70.30,Consolidated Travel 13/04/2013 - 28/04/2013,DE21 6BF,Admin
Food Standards Agency,Food Standards Agency,14/05/2013,Travel UK ,Animal Feed Branch,Capita Business Travel Ltd,LI528164,465.06,Consolidated Travel 13/04/2013 - 28/04/2013,DE21 6BF,Admin
Food Standards Agency,Food Standards Agency,14/05/2013,International Travel,Animal Feed Branch,Capita Business Travel Ltd,LI528164,505.59,Consolidated Travel 13/04/2013 - 28/04/2013,DE21 6BF,Admin
Food Standards Agency,Food Standards Agency,14/05/2013,International Travel,Additives,Capita Business Travel Ltd,LI528164,263.75,Consolidated Travel 13/04/2013 - 28/04/2013,DE21 6BF,Admin
Food Standards Agency,Food Standards Agency,14/05/2013,Travel UK ,Food Policy Strategy HoD,Capita Business Travel Ltd,LI528164,391.80,Consolidated Travel 13/04/2013 - 28/04/2013,DE21 6BF,Admin
Food Standards Agency,Food Standards Agency,14/05/2013,Travel UK ,Planning and Performance,Capita Business Travel Ltd,LI528164,"1,298.50",Consolidated Travel 13/04/2013 - 28/04/2013,DE21 6BF,Admin
Food Standards Agency,Food Standards Agency,14/05/2013,International Travel,Planning and Performance,Capita Business Travel Ltd,LI528164,399.90,Consolidated Travel 13/04/2013 - 28/04/2013,DE21 6BF,Admin
Food Standards Agency,Food Standards Agency,14/05/2013,Travel UK ,Better Regulations & Sustainable Development,Capita Business Travel Ltd,LI528164,65.80,Consolidated Travel 13/04/2013 - 28/04/2013,DE21 6BF,Admin
Food Standards Agency,Food Standards Agency,14/05/2013,Travel UK ,Food Policy Private Office,Capita Business Travel Ltd,LI528164,5.20,Consolidated Travel 13/04/2013 - 28/04/2013,DE21 6BF,Admin
Food Standards Agency,Food Standards Agency,14/05/2013,International Travel,Food Policy Private Office,Capita Business Travel Ltd,LI528164,304.75,Consolidated Travel 13/04/2013 - 28/04/2013,DE21 6BF,Admin
Food Standards Agency,Food Standards Agency,14/05/2013,ASD support services,Finance Director & Branch,DEFRA,1000023353,"88,750.00",PO 408925 SSD CHARGE QTR 4,YO1 7PX,Admin
Food Standards Agency,Food Standards Agency,14/05/2013,ASD support services,Finance Director & Branch,DEFRA,1000023353,"17,750.00",PO 408925 SSD CHARGE QTR 4,YO1 7PX,Admin
Food Standards Agency,Food Standards Agency,14/05/2013,Travel UK ,Finance Director & Branch,Capita Business Travel Ltd,LI528164,157.90,Consolidated Travel 13/04/2013 - 28/04/2013,DE21 6BF,Admin
Food Standards Agency,Food Standards Agency,14/05/2013,Travel UK ,Finance Director & Branch,Capita Business Travel Ltd,LI528164,"2,059.40",Consolidated Travel 13/04/2013 - 28/04/2013,DE21 6BF,Admin
Food Standards Agency,Food Standards Agency,14/05/2013,International Travel,Finance Director & Branch,Capita Business Travel Ltd,LI528164,95.48,Consolidated Travel 13/04/2013 - 28/04/2013,DE21 6BF,Admin
Food Standards Agency,Food Standards Agency,14/05/2013,Travel UK ,HR,Capita Business Travel Ltd,LI528164,"3,411.45",Consolidated Travel 13/04/2013 - 28/04/2013,DE21 6BF,Admin
Food Standards Agency,Food Standards Agency,14/05/2013,Car hire expenses (short term),HR,Capita Business Travel Ltd,LI528164,279.20,Consolidated Travel 13/04/2013 - 28/04/2013,DE21 6BF,Admin
Food Standards Agency,Food Standards Agency,14/05/2013,Travel UK ,Procurement,Capita Business Travel Ltd,LI528164,519.90,Consolidated Travel 13/04/2013 - 28/04/2013,DE21 6BF,Admin
Food Standards Agency,Food Standards Agency,14/05/2013,Subsistence UK,Procurement,Capita Business Travel Ltd,LI528164,"9,469.18",Consolidated Travel 13/04/2013 - 28/04/2013,DE21 6BF,Admin
Food Standards Agency,Food Standards Agency,14/05/2013,Travel UK ,IT HoD,Capita Business Travel Ltd,LI528164,"2,167.70",Consolidated Travel 13/04/2013 - 28/04/2013,DE21 6BF,Admin
Food Standards Agency,Food Standards Agency,14/05/2013,IT equipment maintenance,IT Strategy & Development,Capita Secure Information Solutions Ltd,92961593,"125,101.00",PO 407927 MILES TONE 6 DATA CENTE COMMISSIONED,SN14 0TW,Admin
Food Standards Agency,Food Standards Agency,14/05/2013,IT equipment maintenance,IT Strategy & Development,Capita Secure Information Solutions Ltd,92961593,"25,020.20",PO 407927 MILES TONE 6 DATA CENTE COMMISSIONED,SN14 0TW,Admin
Food Standards Agency,Food Standards Agency,14/05/2013,IT equipment maintenance,IT Strategy & Development,Capita Secure Information Solutions Ltd,92961601,"50,000.00",PO 407927 MILESTONE 8 AGREEMENT OF DESKTOP ROLLOUT,SN14 0TW,Admin
Food Standards Agency,Food Standards Agency,14/05/2013,IT equipment maintenance,IT Strategy & Development,Capita Secure Information Solutions Ltd,92961601,"10,000.00",PO 407927 MILESTONE 8 AGREEMENT OF DESKTOP ROLLOUT,SN14 0TW,Admin
Food Standards Agency,Food Standards Agency,14/05/2013,IT equipment maintenance,IT Strategy & Development,Capita Secure Information Solutions Ltd,92961607,"261,243.00",PO 407927 MILESTONE 10 REPLACEMENT OF 1ST TRANCHEOF PHASE 80 PILOT,SN14 0TW,Admin
Food Standards Agency,Food Standards Agency,14/05/2013,IT equipment maintenance,IT Strategy & Development,Capita Secure Information Solutions Ltd,92961607,"52,248.60",PO 407927 MILESTONE 10 REPLACEMENT OF 1ST TRANCHEOF PHASE 80 PILOT,SN14 0TW,Admin
Food Standards Agency,Food Standards Agency,14/05/2013,Service charges,Security & Estates,G4s Integrated Services (Uk) Ltd,M12136,"27,813.58",G4S MONTHLY CONTRACT CHARGES APR 2013,S81 7QF,Admin
Food Standards Agency,Food Standards Agency,14/05/2013,Service charges,Security & Estates,G4s Integrated Services (Uk) Ltd,M12136,"16,129.33",G4S MONTHLY CONTRACT CHARGES APR 2013,S81 7QF,Admin
Food Standards Agency,Food Standards Agency,14/05/2013,Service charges,Security & Estates,G4s Integrated Services (Uk) Ltd,M12136,"2,939.91",G4S MONTHLY CONTRACT CHARGES APR 2013,S81 7QF,Admin
Food Standards Agency,Food Standards Agency,14/05/2013,Stationery,Security & Estates,G4s Integrated Services (Uk) Ltd,M12136,"3,244.00",G4S MONTHLY CONTRACT CHARGES APR 2013,S81 7QF,Admin
Food Standards Agency,Food Standards Agency,14/05/2013,Security,Security & Estates,G4s Integrated Services (Uk) Ltd,M12136,"18,775.38",G4S MONTHLY CONTRACT CHARGES APR 2013,S81 7QF,Admin
Food Standards Agency,Food Standards Agency,14/05/2013,Travel UK ,Security & Estates,Capita Business Travel Ltd,LI528164,269.20,Consolidated Travel 13/04/2013 - 28/04/2013,DE21 6BF,Admin
Food Standards Agency,Food Standards Agency,14/05/2013,Travel UK ,IT Information & Knowledge Management,Capita Business Travel Ltd,LI528164,202.40,Consolidated Travel 13/04/2013 - 28/04/2013,DE21 6BF,Admin
Food Standards Agency,Food Standards Agency,14/05/2013,Travel UK ,Internal Audit,Capita Business Travel Ltd,LI528164,255.70,Consolidated Travel 13/04/2013 - 28/04/2013,DE21 6BF,Admin
Food Standards Agency,Food Standards Agency,16/05/2013,Subsistence UK,Area 1 Scotland - Cluster 11,Booking Services International Ltd,228910511,102.00,Consolidated Conference & Accommodation 13/04/2013 - 28/04/2013,TA1 2PF,Programme
Food Standards Agency,Food Standards Agency,16/05/2013,Subsistence UK,Area 1 Scotland - Cluster 12,Booking Services International Ltd,228910511,242.00,Consolidated Conference & Accommodation 13/04/2013 - 28/04/2013,TA1 2PF,Programme
Food Standards Agency,Food Standards Agency,16/05/2013,Conference and meeting facilities including accommodation,Area 1 Scotland - Cluster 13,Booking Services International Ltd,228910511,137.00,Consolidated Conference & Accommodation 13/04/2013 - 28/04/2013,TA1 2PF,Programme
Food Standards Agency,Food Standards Agency,16/05/2013,Subsistence UK,Area 1 Scotland - Cluster 15,Booking Services International Ltd,228910511,102.00,Consolidated Conference & Accommodation 13/04/2013 - 28/04/2013,TA1 2PF,Programme
Food Standards Agency,Food Standards Agency,16/05/2013,Subsistence UK,Area 2 Wales - Cluster 22,Booking Services International Ltd,228910511,70.00,Consolidated Conference & Accommodation 13/04/2013 - 28/04/2013,TA1 2PF,Programme
Food Standards Agency,Food Standards Agency,16/05/2013,Subsistence UK,Area 2 Wales - Cluster 23,Booking Services International Ltd,228910511,218.00,Consolidated Conference & Accommodation 13/04/2013 - 28/04/2013,TA1 2PF,Programme
Food Standards Agency,Food Standards Agency,16/05/2013,Subsistence UK,Area 3 North West England - Cluster 33,Booking Services International Ltd,228910511,55.00,Consolidated Conference & Accommodation 13/04/2013 - 28/04/2013,TA1 2PF,Programme
Food Standards Agency,Food Standards Agency,16/05/2013,Subsistence UK,Area 3 North West England - Cluster 34,Booking Services International Ltd,228910511,140.00,Consolidated Conference & Accommodation 13/04/2013 - 28/04/2013,TA1 2PF,Programme
Food Standards Agency,Food Standards Agency,16/05/2013,Subsistence UK,Area 4 North East England - Cluster 46,Booking Services International Ltd,228910511,135.60,Consolidated Conference & Accommodation 13/04/2013 - 28/04/2013,TA1 2PF,Programme
Food Standards Agency,Food Standards Agency,16/05/2013,Subsistence UK,Area 5 South West England - Cluster 52,Booking Services International Ltd,228910511,135.60,Consolidated Conference & Accommodation 13/04/2013 - 28/04/2013,TA1 2PF,Programme
Food Standards Agency,Food Standards Agency,16/05/2013,Subsistence UK,Area 5 South West England - Cluster 57,Booking Services International Ltd,228910511,125.00,Consolidated Conference & Accommodation 13/04/2013 - 28/04/2013,TA1 2PF,Programme
Food Standards Agency,Food Standards Agency,16/05/2013,Subsistence UK,Area 6 South East England - Cluster 64,Booking Services International Ltd,228910511,85.00,Consolidated Conference & Accommodation 13/04/2013 - 28/04/2013,TA1 2PF,Programme
Food Standards Agency,Food Standards Agency,16/05/2013,Subsistence UK,Chief Executive & Private Office,Booking Services International Ltd,228910511,285.10,Consolidated Conference & Accommodation 13/04/2013 - 28/04/2013,TA1 2PF,Admin
Food Standards Agency,Food Standards Agency,16/05/2013,Subsistence UK,FSA Board,Booking Services International Ltd,228910511,"5,100.00",Consolidated Conference & Accommodation 13/04/2013 - 28/04/2013,TA1 2PF,Admin
Food Standards Agency,Food Standards Agency,16/05/2013,Conference and meeting facilities including accommodation,FSA Board,Booking Services International Ltd,228910511,848.55,Consolidated Conference & Accommodation 13/04/2013 - 28/04/2013,TA1 2PF,Admin
Food Standards Agency,Food Standards Agency,16/05/2013,Subsistence UK,Investigations,Booking Services International Ltd,228910511,482.60,Consolidated Conference & Accommodation 13/04/2013 - 28/04/2013,TA1 2PF,Admin
Food Standards Agency,Food Standards Agency,16/05/2013,Subsistence UK,Chief Scientist,Booking Services International Ltd,228910511,140.00,Consolidated Conference & Accommodation 13/04/2013 - 28/04/2013,TA1 2PF,Admin
Food Standards Agency,Food Standards Agency,16/05/2013,Subsistence UK,Analysis & Research Branch,Booking Services International Ltd,228910511,384.00,Consolidated Conference & Accommodation 13/04/2013 - 28/04/2013,TA1 2PF,Admin
Food Standards Agency,Food Standards Agency,16/05/2013,Subsistence UK,Comms Directors Office,Booking Services International Ltd,228910511,68.00,Consolidated Conference & Accommodation 13/04/2013 - 28/04/2013,TA1 2PF,Admin
Food Standards Agency,Food Standards Agency,16/05/2013,Subsistence UK,Comms Directors Office,Booking Services International Ltd,228910511,153.60,Consolidated Conference & Accommodation 13/04/2013 - 28/04/2013,TA1 2PF,Admin
Food Standards Agency,Food Standards Agency,16/05/2013,Conference and meeting facilities including accommodation,Comms Directors Office,Booking Services International Ltd,228910511,"1,912.50",Consolidated Conference & Accommodation 13/04/2013 - 28/04/2013,TA1 2PF,Admin
Food Standards Agency,Food Standards Agency,16/05/2013,Subsistence UK,FSA Operations Director & Support,Booking Services International Ltd,228910511,466.50,Consolidated Conference & Accommodation 13/04/2013 - 28/04/2013,TA1 2PF,Programme
Food Standards Agency,Food Standards Agency,16/05/2013,Subsistence UK,Approvals & Veterinary Advice,Booking Services International Ltd,228910511,766.20,Consolidated Conference & Accommodation 13/04/2013 - 28/04/2013,TA1 2PF,Programme
Food Standards Agency,Food Standards Agency,16/05/2013,Subsistence UK,LAALD HoD & Support,Booking Services International Ltd,228910511,"1,949.10",Consolidated Conference & Accommodation 13/04/2013 - 28/04/2013,TA1 2PF,Admin
Food Standards Agency,Food Standards Agency,16/05/2013,Subsistence UK,Animal Feed,Booking Services International Ltd,228910511,307.20,Consolidated Conference & Accommodation 13/04/2013 - 28/04/2013,TA1 2PF,Admin
Food Standards Agency,Food Standards Agency,16/05/2013,Subsistence UK,Incidents & Food Fraud,Booking Services International Ltd,228910511,"2,001.00",Consolidated Conference & Accommodation 13/04/2013 - 28/04/2013,TA1 2PF,Admin
Food Standards Agency,Food Standards Agency,16/05/2013,Conference and meeting facilities including accommodation,Incidents & Food Fraud,Booking Services International Ltd,228910511,510.00,Consolidated Conference & Accommodation 13/04/2013 - 28/04/2013,TA1 2PF,Admin
Food Standards Agency,Food Standards Agency,16/05/2013,Subsistence UK,Delivery,Booking Services International Ltd,228910511,713.60,Consolidated Conference & Accommodation 13/04/2013 - 28/04/2013,TA1 2PF,Admin
Food Standards Agency,Food Standards Agency,16/05/2013,Subsistence UK,Official Controls & Enforcement Strategy,Booking Services International Ltd,228910511,70.00,Consolidated Conference & Accommodation 13/04/2013 - 28/04/2013,TA1 2PF,Admin
Food Standards Agency,Food Standards Agency,16/05/2013,Subsistence UK,Operational Delivery,Booking Services International Ltd,228910511,48.97,Consolidated Conference & Accommodation 13/04/2013 - 28/04/2013,TA1 2PF,Programme
Food Standards Agency,Food Standards Agency,16/05/2013,Subsistence UK,Operational Delivery,Booking Services International Ltd,228910511,"3,161.80",Consolidated Conference & Accommodation 13/04/2013 - 28/04/2013,TA1 2PF,Programme
Food Standards Agency,Food Standards Agency,16/05/2013,Subsistence UK,Wine Standards,Booking Services International Ltd,228910511,70.00,Consolidated Conference & Accommodation 13/04/2013 - 28/04/2013,TA1 2PF,Programme
Food Standards Agency,Food Standards Agency,16/05/2013,Subsistence UK,Central Operations Hub,Booking Services International Ltd,228910511,971.20,Consolidated Conference & Accommodation 13/04/2013 - 28/04/2013,TA1 2PF,Programme
Food Standards Agency,Food Standards Agency,16/05/2013,Subsistence UK,EU Regulatory Reform Branch,Booking Services International Ltd,228910511,175.75,Consolidated Conference & Accommodation 13/04/2013 - 28/04/2013,TA1 2PF,Admin
Food Standards Agency,Food Standards Agency,16/05/2013,Subsistence UK,Animal Feed Branch,Booking Services International Ltd,228910511,343.72,Consolidated Conference & Accommodation 13/04/2013 - 28/04/2013,TA1 2PF,Admin
Food Standards Agency,Food Standards Agency,16/05/2013,Subsistence UK,Planning and Performance,Booking Services International Ltd,228910511,632.20,Consolidated Conference & Accommodation 13/04/2013 - 28/04/2013,TA1 2PF,Admin
Food Standards Agency,Food Standards Agency,16/05/2013,Subsistence UK,Food Policy Private Office,Booking Services International Ltd,228910511,102.00,Consolidated Conference & Accommodation 13/04/2013 - 28/04/2013,TA1 2PF,Admin
Food Standards Agency,Food Standards Agency,16/05/2013,Subsistence UK,Finance Director & Branch,Booking Services International Ltd,228910511,307.20,Consolidated Conference & Accommodation 13/04/2013 - 28/04/2013,TA1 2PF,Admin
Food Standards Agency,Food Standards Agency,16/05/2013,Subsistence UK,HR,Booking Services International Ltd,228910511,356.60,Consolidated Conference & Accommodation 13/04/2013 - 28/04/2013,TA1 2PF,Admin
Food Standards Agency,Food Standards Agency,16/05/2013,Conference and meeting facilities including accommodation,HR,Booking Services International Ltd,228910511,75.00,Consolidated Conference & Accommodation 13/04/2013 - 28/04/2013,TA1 2PF,Admin
Food Standards Agency,Food Standards Agency,16/05/2013,Subsistence UK,Procurement,Booking Services International Ltd,228910511,993.95,Consolidated Conference & Accommodation 13/04/2013 - 28/04/2013,TA1 2PF,Admin
Food Standards Agency,Food Standards Agency,16/05/2013,Subsistence UK,IT HoD,Booking Services International Ltd,228910511,135.60,Consolidated Conference & Accommodation 13/04/2013 - 28/04/2013,TA1 2PF,Admin
Food Standards Agency,Food Standards Agency,20/05/2013,Telecomms-data networks & call charges,IT Service Delivery,Capita Secure Information Solutions Ltd,92921880,"55,199.10",PO 411869 3 YEARS MAINTENANCE & SUPPORT FOR VIDEO CONFERENCING,SN14 0TW,Admin
Food Standards Agency,Food Standards Agency,20/05/2013,Telecomms-data networks & call charges,IT Service Delivery,Capita Secure Information Solutions Ltd,92921880,"11,039.82",PO 411869 TRANSFORMATION VOIP,SN14 0TW,Admin
Food Standards Agency,Food Standards Agency,20/05/2013,Telecomms-data networks & call charges,IT Service Delivery,Level 3 Communications UK Limited,80327553,"39,686.83",HANDSETS & SAPS CHARGES JAN - MAR 13,RG24 8NA,Admin
Food Standards Agency,Food Standards Agency,20/05/2013,Telecomms-data networks & call charges,IT Service Delivery,Level 3 Communications UK Limited,80327553,"7,937.37",HANDSETS & SAPS CHARGES JAN - MAR 13,RG24 8NA,Admin
Food Standards Agency,Food Standards Agency,20/05/2013,Telecomms-data networks & call charges,IT Service Delivery,Level 3 Communications UK Limited,80327553,0.02,HANDSETS & SAPS CHARGES JAN - MAR 13,RG24 8NA,Admin
Food Standards Agency,Food Standards Agency,20/05/2013,Agency/temp staff (clerical/admin only),IT Strategy & Development,Capita Secure Information Solutions Ltd,92921880,"22,412.50",PO 411869 TRANSFORMATION VOIP,SN14 0TW,Capital
Food Standards Agency,Food Standards Agency,20/05/2013,Agency/temp staff (clerical/admin only),IT Strategy & Development,Capita Secure Information Solutions Ltd,92921880,"4,482.50",PO 411869 TRANSFORMATION VOIP,SN14 0TW,Capital
Food Standards Agency,Food Standards Agency,20/05/2013,Fixed Assets Additions,IT Strategy & Development,Capita Secure Information Solutions Ltd,92921880,"152,705.52",PO 411869 VIDEO CONFERENCING HARDWARE/EQUIPMENT,SN14 0TW,Capital
Food Standards Agency,Food Standards Agency,20/05/2013,Fixed Assets Additions,IT Strategy & Development,Capita Secure Information Solutions Ltd,92921880,"30,541.10",PO 411869 VIDEO CONFERENCING HARDWARE/EQUIPMENT - VAT,SN14 0TW,Capital
Food Standards Agency,Food Standards Agency,20/05/2013,Fixed Assets Additions,IT Strategy & Development,Capita Secure Information Solutions Ltd,92921880,"17,891.50",PO 411869 TRANSFORMATION VOIP,SN14 0TW,Capital
Food Standards Agency,Food Standards Agency,20/05/2013,Fixed Assets Additions,IT Strategy & Development,Capita Secure Information Solutions Ltd,92921880,"3,578.30",PO 411869 TRANSFORMATION VOIP,SN14 0TW,Capital
Food Standards Agency,Food Standards Agency,22/05/2013,ASD support services,IT Service Delivery,Capita Secure Information Solutions Ltd,92983307,"260,214.76",PO 413204 APR 13 CORE SERVICES CHARGE,SN14 0TW,Admin
Food Standards Agency,Food Standards Agency,24/05/2013,Laundry,Operational Delivery,Apparelmaster UK Ltd,48053,"23,451.09",PO 413162 31/3/13 - 27/4/13 REGION 546,PR2 9ZD,Programme
Food Standards Agency,Food Standards Agency,29/05/2013,Publicity charges,Comms Directors Office,Creative Choice CIC,673,"28,431.00",PO 413196 FOOD SAFETY WEEK 2013 JOB 497,SW1H 0DJ,Programme
Food Standards Agency,Food Standards Agency,29/05/2013,Publicity charges,Comms Directors Office,Creative Choice CIC,673,"5,686.20",PO 413196 FOOD SAFETY WEEK 2013 JOB 497,SW1H 0DJ,Programme
Food Standards Agency,Food Standards Agency,29/05/2013,Programme Evidence & Research Expenditure,Chemical Risk Assessment Unit,Food & Environment Research Agency,FOO29410,"30,361.00",PO 400530 FINAL RETENTION,YO41 1LZ,Programme
Food Standards Agency,Food Standards Agency,29/05/2013,Programme Evidence & Research Expenditure,Chemical Risk Assessment Unit,Food & Environment Research Agency,FOO29410,"6,072.20",PO 400530 FINAL RETENTION,YO41 1LZ,Programme
Food Standards Agency,Food Standards Agency,29/05/2013,Programme Evidence & Research Expenditure,Food Production Branch,Food & Environment Research Agency,F0029163,"28,239.25",PO 412319 CONTRACT TITLE FS231058 MONTHLY REPORT,YO41 1LZ,Programme
Food Standards Agency,Food Standards Agency,29/05/2013,Programme Evidence & Research Expenditure,Food Production Branch,Food & Environment Research Agency,F0029163,"28,239.25",PO 412319 CONTRACT TITLE FS231058 MONTHLY REPORT,YO41 1LZ,Programme
Food Standards Agency,Food Standards Agency,29/05/2013,Programme Evidence & Research Expenditure,Food Production Branch,Food & Environment Research Agency,F0029163,"28,239.25",PO 412319 CONTRACT TITLE FS231058 MONTHLY REPORT,YO41 1LZ,Programme
Food Standards Agency,Food Standards Agency,29/05/2013,Programme Evidence & Research Expenditure,Food Production Branch,Food & Environment Research Agency,F0029163,"28,239.25",PO 412319 CONTRACT TITLE FS231058 MONTHLY REPORT,YO41 1LZ,Programme
Food Standards Agency,Food Standards Agency,29/05/2013,IT equipment maintenance,IT Strategy & Development,Capita Secure Information Solutions Ltd,92988949,"136,473.00",Po 407927 CHARGES FOR MILESTONE 19 VOIP (LOT 1),SN14 0TW,Admin
Food Standards Agency,Food Standards Agency,29/05/2013,IT equipment maintenance,IT Strategy & Development,Capita Secure Information Solutions Ltd,92988949,"27,294.60",Po 407927 CHARGES FOR MILESTONE 19 VOIP (LOT 1),SN14 0TW,Admin
Food Standards Agency,Food Standards Agency,29/05/2013,IT equipment maintenance,IT Strategy & Development,Capita Secure Information Solutions Ltd,92988951,"51,001.15",PO 407927 MILESTONE 20 DATA CENTRE (LOT 3),SN14 0TW,Admin
Food Standards Agency,Food Standards Agency,29/05/2013,IT equipment maintenance,IT Strategy & Development,Capita Secure Information Solutions Ltd,92988951,"10,200.23",PO 407927 MILESTONE 20 DATA CENTRE (LOT 3),SN14 0TW,Admin
Food Standards Agency,Food Standards Agency,29/05/2013,IT equipment maintenance,IT Strategy & Development,Capita Secure Information Solutions Ltd,92988955,"34,516.72",PO 407927 MILESTONE 20 DATA CENTRE (LOT 3),SN14 0TW,Admin
Food Standards Agency,Food Standards Agency,29/05/2013,IT equipment maintenance,IT Strategy & Development,Capita Secure Information Solutions Ltd,92988955,"6,903.34",PO 407927 MILESTONE 20 DATA CENTRE (LOT 3),SN14 0TW,Admin
Food Standards Agency,Food Standards Agency,29/05/2013,IT equipment maintenance,IT Strategy & Development,Capita Secure Information Solutions Ltd,92988960,"199,650.00",PO 407927 MILESTONE 21 DESKTOP REFRESH (LOT 6),SN14 0TW,Admin
Food Standards Agency,Food Standards Agency,29/05/2013,IT equipment maintenance,IT Strategy & Development,Capita Secure Information Solutions Ltd,92988960,"39,930.00",PO 407927 MILESTONE 21 DESKTOP REFRESH (LOT 6),SN14 0TW,Admin
Food Standards Agency,Food Standards Agency,29/05/2013,Utilities,Security & Estates,E D F Energy,EDF0154020513,"29,380.46",EDF INVOICE 155 APRIL 2013,PL3 5XQ,Admin
Food Standards Agency,Food Standards Agency,29/05/2013,Utilities,Security & Estates,E D F Energy,EDF0154020513,"5,876.09",EDF INVOICE 155 APRIL 2013,PL3 5XQ,Admin
Food Standards Agency,Food Standards Agency,31/05/2013,Subsistence UK,Area 1 Scotland - Cluster 11,Capita Business Travel Ltd,229279011,479.60,Consolidated Conference & Accommodation Costs 29/04/2013 - 12/05/2013,DE21 6BF,Programme
Food Standards Agency,Food Standards Agency,31/05/2013,Subsistence UK,Area 1 Scotland - Cluster 12,Capita Business Travel Ltd,229279011,244.00,Consolidated Conference & Accommodation Costs 29/04/2013 - 12/05/2013,DE21 6BF,Programme
Food Standards Agency,Food Standards Agency,31/05/2013,Subsistence UK,Area 1 Scotland - Cluster 13,Capita Business Travel Ltd,229279011,537.00,Consolidated Conference & Accommodation Costs 29/04/2013 - 12/05/2013,DE21 6BF,Programme
Food Standards Agency,Food Standards Agency,31/05/2013,Subsistence UK,Area 1 Scotland - Cluster 15,Capita Business Travel Ltd,229279011,434.00,Consolidated Conference & Accommodation Costs 29/04/2013 - 12/05/2013,DE21 6BF,Programme
Food Standards Agency,Food Standards Agency,31/05/2013,Subsistence UK,Area 2 Wales - Cluster 21,Capita Business Travel Ltd,229279011,423.00,Consolidated Conference & Accommodation Costs 29/04/2013 - 12/05/2013,DE21 6BF,Programme
Food Standards Agency,Food Standards Agency,31/05/2013,Subsistence UK,Area 2 Wales - Cluster 22,Capita Business Travel Ltd,229279011,266.00,Consolidated Conference & Accommodation Costs 29/04/2013 - 12/05/2013,DE21 6BF,Programme
Food Standards Agency,Food Standards Agency,31/05/2013,Subsistence UK,Area 3 North West England - Cluster 31,Capita Business Travel Ltd,229279011,280.00,Consolidated Conference & Accommodation Costs 29/04/2013 - 12/05/2013,DE21 6BF,Programme
Food Standards Agency,Food Standards Agency,31/05/2013,Subsistence UK,Area 3 North West England - Cluster 32,Capita Business Travel Ltd,229279011,135.60,Consolidated Conference & Accommodation Costs 29/04/2013 - 12/05/2013,DE21 6BF,Programme
Food Standards Agency,Food Standards Agency,31/05/2013,Subsistence UK,Area 3 North West England - Cluster 33,Capita Business Travel Ltd,229279011,130.00,Consolidated Conference & Accommodation Costs 29/04/2013 - 12/05/2013,DE21 6BF,Programme
Food Standards Agency,Food Standards Agency,31/05/2013,Subsistence UK,Area 3 North West England - Cluster 33,Capita Business Travel Ltd,229279011,78.00,Consolidated Conference & Accommodation Costs 29/04/2013 - 12/05/2013,DE21 6BF,Programme
Food Standards Agency,Food Standards Agency,31/05/2013,Subsistence UK,Area 3 North West England - Cluster 34,Capita Business Travel Ltd,229279011,213.00,Consolidated Conference & Accommodation Costs 29/04/2013 - 12/05/2013,DE21 6BF,Programme
Food Standards Agency,Food Standards Agency,31/05/2013,Subsistence UK,Area 3 North West England - Cluster 36,Capita Business Travel Ltd,229279011,210.00,Consolidated Conference & Accommodation Costs 29/04/2013 - 12/05/2013,DE21 6BF,Programme
Food Standards Agency,Food Standards Agency,31/05/2013,Subsistence UK,Area 4 North East England - Cluster 41,Capita Business Travel Ltd,229279011,140.00,Consolidated Conference & Accommodation Costs 29/04/2013 - 12/05/2013,DE21 6BF,Programme
Food Standards Agency,Food Standards Agency,31/05/2013,Subsistence UK,Area 4 North East England - Cluster 44,Capita Business Travel Ltd,229279011,350.00,Consolidated Conference & Accommodation Costs 29/04/2013 - 12/05/2013,DE21 6BF,Programme
Food Standards Agency,Food Standards Agency,31/05/2013,Subsistence UK,Area 4 North East England - Cluster 46,Capita Business Travel Ltd,229279011,70.00,Consolidated Conference & Accommodation Costs 29/04/2013 - 12/05/2013,DE21 6BF,Programme
Food Standards Agency,Food Standards Agency,31/05/2013,Subsistence UK,Area 4 North East England - Cluster 47,Capita Business Travel Ltd,229279011,205.60,Consolidated Conference & Accommodation Costs 29/04/2013 - 12/05/2013,DE21 6BF,Programme
Food Standards Agency,Food Standards Agency,31/05/2013,Subsistence UK,Area 4 North East England - Cluster 48,Capita Business Travel Ltd,229279011,70.00,Consolidated Conference & Accommodation Costs 29/04/2013 - 12/05/2013,DE21 6BF,Programme
Food Standards Agency,Food Standards Agency,31/05/2013,Subsistence UK,Area 5 South West England - Cluster 52,Capita Business Travel Ltd,229279011,200.00,Consolidated Conference & Accommodation Costs 29/04/2013 - 12/05/2013,DE21 6BF,Programme
Food Standards Agency,Food Standards Agency,31/05/2013,Subsistence UK,Area 5 South West England - Cluster 55,Capita Business Travel Ltd,229279011,130.00,Consolidated Conference & Accommodation Costs 29/04/2013 - 12/05/2013,DE21 6BF,Programme
Food Standards Agency,Food Standards Agency,31/05/2013,Subsistence UK,Area 5 South West England - Cluster 56,Capita Business Travel Ltd,229279011,70.00,Consolidated Conference & Accommodation Costs 29/04/2013 - 12/05/2013,DE21 6BF,Programme
Food Standards Agency,Food Standards Agency,31/05/2013,Subsistence UK,Area 5 South West England - Cluster 57,Capita Business Travel Ltd,229279011,155.00,Consolidated Conference & Accommodation Costs 29/04/2013 - 12/05/2013,DE21 6BF,Programme
Food Standards Agency,Food Standards Agency,31/05/2013,Subsistence UK,Area 6 South East England - Cluster 61,Capita Business Travel Ltd,229279011,230.00,Consolidated Conference & Accommodation Costs 29/04/2013 - 12/05/2013,DE21 6BF,Programme
Food Standards Agency,Food Standards Agency,31/05/2013,Subsistence UK,Area 6 South East England - Cluster 62,Capita Business Travel Ltd,229279011,205.60,Consolidated Conference & Accommodation Costs 29/04/2013 - 12/05/2013,DE21 6BF,Programme
Food Standards Agency,Food Standards Agency,31/05/2013,Subsistence UK,Area 6 South East England - Cluster 63,Capita Business Travel Ltd,229279011,307.20,Consolidated Conference & Accommodation Costs 29/04/2013 - 12/05/2013,DE21 6BF,Programme
Food Standards Agency,Food Standards Agency,31/05/2013,Subsistence UK,Area 6 South East England - Cluster 64,Capita Business Travel Ltd,229279011,334.07,Consolidated Conference & Accommodation Costs 29/04/2013 - 12/05/2013,DE21 6BF,Programme
Food Standards Agency,Food Standards Agency,31/05/2013,Subsistence UK,Area 6 South East England - Cluster 65,Capita Business Travel Ltd,229279011,225.00,Consolidated Conference & Accommodation Costs 29/04/2013 - 12/05/2013,DE21 6BF,Programme
Food Standards Agency,Food Standards Agency,31/05/2013,Subsistence UK,Chief Executive & Private Office,Capita Business Travel Ltd,229279011,251.00,Consolidated Conference & Accommodation Costs 29/04/2013 - 12/05/2013,DE21 6BF,Admin
Food Standards Agency,Food Standards Agency,31/05/2013,Subsistence UK,FSA Board,Capita Business Travel Ltd,229279011,89.00,Consolidated Conference & Accommodation Costs 29/04/2013 - 12/05/2013,DE21 6BF,Admin
Food Standards Agency,Food Standards Agency,31/05/2013,Subsistence UK,Investigations,Capita Business Travel Ltd,229279011,423.60,Consolidated Conference & Accommodation Costs 29/04/2013 - 12/05/2013,DE21 6BF,Admin
Food Standards Agency,Food Standards Agency,31/05/2013,Subsistence UK,Comms Directors Office,Capita Business Travel Ltd,229279011,442.80,Consolidated Conference & Accommodation Costs 29/04/2013 - 12/05/2013,DE21 6BF,Admin
Food Standards Agency,Food Standards Agency,31/05/2013,Subsistence UK,Comms Directors Office,Capita Business Travel Ltd,229279011,460.80,Consolidated Conference & Accommodation Costs 29/04/2013 - 12/05/2013,DE21 6BF,Admin
Food Standards Agency,Food Standards Agency,31/05/2013,Subsistence UK,FSA Operations Director & Support,Capita Business Travel Ltd,229279011,271.20,Consolidated Conference & Accommodation Costs 29/04/2013 - 12/05/2013,DE21 6BF,Programme
Food Standards Agency,Food Standards Agency,31/05/2013,Subsistence UK,Approvals & Veterinary Advice,Capita Business Travel Ltd,229279011,941.00,Consolidated Conference & Accommodation Costs 29/04/2013 - 12/05/2013,DE21 6BF,Programme
Food Standards Agency,Food Standards Agency,31/05/2013,Subsistence UK,Approvals & Veterinary Advice,Capita Business Travel Ltd,229279011,77.00,Consolidated Conference & Accommodation Costs 29/04/2013 - 12/05/2013,DE21 6BF,Programme
Food Standards Agency,Food Standards Agency,31/05/2013,Subsistence UK,LAALD HoD & Support,Capita Business Travel Ltd,229279011,822.45,Consolidated Conference & Accommodation Costs 29/04/2013 - 12/05/2013,DE21 6BF,Admin
Food Standards Agency,Food Standards Agency,31/05/2013,Subsistence UK,LAALD HoD & Support,Capita Business Travel Ltd,229279011,454.80,Consolidated Conference & Accommodation Costs 29/04/2013 - 12/05/2013,DE21 6BF,Admin
Food Standards Agency,Food Standards Agency,31/05/2013,Conference and meeting facilities including accommodation,LAALD HoD & Support,Capita Business Travel Ltd,229279011,226.73,Consolidated Conference & Accommodation Costs 29/04/2013 - 12/05/2013,DE21 6BF,Admin
Food Standards Agency,Food Standards Agency,31/05/2013,Subsistence UK,Animal Feed,Capita Business Travel Ltd,229279011,303.00,Consolidated Conference & Accommodation Costs 29/04/2013 - 12/05/2013,DE21 6BF,Admin
Food Standards Agency,Food Standards Agency,31/05/2013,Subsistence UK,Incidents & Food Fraud,Capita Business Travel Ltd,229279011,"1,396.00",Consolidated Conference & Accommodation Costs 29/04/2013 - 12/05/2013,DE21 6BF,Admin
Food Standards Agency,Food Standards Agency,31/05/2013,Conference and meeting facilities including accommodation,Incidents & Food Fraud,Capita Business Travel Ltd,229279011,600.00,Consolidated Conference & Accommodation Costs 29/04/2013 - 12/05/2013,DE21 6BF,Admin
Food Standards Agency,Food Standards Agency,31/05/2013,Subsistence UK,Delivery,Capita Business Travel Ltd,229279011,850.00,Consolidated Conference & Accommodation Costs 29/04/2013 - 12/05/2013,DE21 6BF,Admin
Food Standards Agency,Food Standards Agency,31/05/2013,Subsistence UK,Delivery,Capita Business Travel Ltd,229279011,154.70,Consolidated Conference & Accommodation Costs 29/04/2013 - 12/05/2013,DE21 6BF,Admin
Food Standards Agency,Food Standards Agency,31/05/2013,Subsistence UK,Operational Delivery,Capita Business Travel Ltd,229279011,"3,813.32",Consolidated Conference & Accommodation Costs 29/04/2013 - 12/05/2013,DE21 6BF,Programme
Food Standards Agency,Food Standards Agency,31/05/2013,Subsistence UK,Operational Delivery,Capita Business Travel Ltd,229279011,412.60,Consolidated Conference & Accommodation Costs 29/04/2013 - 12/05/2013,DE21 6BF,Programme
Food Standards Agency,Food Standards Agency,31/05/2013,Conference and meeting facilities including accommodation,Operational Delivery,Capita Business Travel Ltd,229279011,989.24,Consolidated Conference & Accommodation Costs 29/04/2013 - 12/05/2013,DE21 6BF,Programme
Food Standards Agency,Food Standards Agency,31/05/2013,Subsistence UK,Wine Standards,Capita Business Travel Ltd,229279011,140.00,Consolidated Conference & Accommodation Costs 29/04/2013 - 12/05/2013,DE21 6BF,Admin
Food Standards Agency,Food Standards Agency,31/05/2013,Subsistence UK,Central Operations Hub,Capita Business Travel Ltd,229279011,696.00,Consolidated Conference & Accommodation Costs 29/04/2013 - 12/05/2013,DE21 6BF,Programme
Food Standards Agency,Food Standards Agency,31/05/2013,Subsistence UK,Central Operations Hub,Capita Business Travel Ltd,229279011,140.00,Consolidated Conference & Accommodation Costs 29/04/2013 - 12/05/2013,DE21 6BF,Programme
Food Standards Agency,Food Standards Agency,31/05/2013,Subsistence UK,Novel Food Unit,Capita Business Travel Ltd,229279011,682.40,Consolidated Conference & Accommodation Costs 29/04/2013 - 12/05/2013,DE21 6BF,Admin
Food Standards Agency,Food Standards Agency,31/05/2013,Subsistence UK,Food Hygiene Policy Branch,Capita Business Travel Ltd,229279011,175.75,Consolidated Conference & Accommodation Costs 29/04/2013 - 12/05/2013,DE21 6BF,Admin
Food Standards Agency,Food Standards Agency,31/05/2013,Subsistence UK,Animal Feed Branch,Capita Business Travel Ltd,229279011,786.99,Consolidated Conference & Accommodation Costs 29/04/2013 - 12/05/2013,DE21 6BF,Admin
Food Standards Agency,Food Standards Agency,31/05/2013,Subsistence UK,Food Policy Strategy HoD,Capita Business Travel Ltd,229279011,123.60,Consolidated Conference & Accommodation Costs 29/04/2013 - 12/05/2013,DE21 6BF,Admin
Food Standards Agency,Food Standards Agency,31/05/2013,Subsistence UK,European & International Strategy,Capita Business Travel Ltd,229279011,135.60,Consolidated Conference & Accommodation Costs 29/04/2013 - 12/05/2013,DE21 6BF,Admin
Food Standards Agency,Food Standards Agency,31/05/2013,Subsistence UK,Planning and Performance,Capita Business Travel Ltd,229279011,585.20,Consolidated Conference & Accommodation Costs 29/04/2013 - 12/05/2013,DE21 6BF,Admin
Food Standards Agency,Food Standards Agency,31/05/2013,Subsistence UK,Better Regulations & Sustainable Development,Capita Business Travel Ltd,229279011,75.25,Consolidated Conference & Accommodation Costs 29/04/2013 - 12/05/2013,DE21 6BF,Admin
Food Standards Agency,Food Standards Agency,31/05/2013,Subsistence UK,Food Policy Private Office,Capita Business Travel Ltd,229279011,127.20,Consolidated Conference & Accommodation Costs 29/04/2013 - 12/05/2013,DE21 6BF,Admin
Food Standards Agency,Food Standards Agency,31/05/2013,Subsistence UK,Finance Director & Branch,Capita Business Travel Ltd,229279011,135.60,Consolidated Conference & Accommodation Costs 29/04/2013 - 12/05/2013,DE21 6BF,Admin
Food Standards Agency,Food Standards Agency,31/05/2013,Subsistence UK,Finance Director & Branch,Capita Business Travel Ltd,229279011,153.60,Consolidated Conference & Accommodation Costs 29/04/2013 - 12/05/2013,DE21 6BF,Admin
Food Standards Agency,Food Standards Agency,31/05/2013,Subsistence UK,HR,Capita Business Travel Ltd,229279011,548.32,Consolidated Conference & Accommodation Costs 29/04/2013 - 12/05/2013,DE21 6BF,Admin
Food Standards Agency,Food Standards Agency,31/05/2013,Subsistence UK,HR,Capita Business Travel Ltd,229279011,289.60,Consolidated Conference & Accommodation Costs 29/04/2013 - 12/05/2013,DE21 6BF,Admin
Food Standards Agency,Food Standards Agency,31/05/2013,Conference and meeting facilities including accommodation,HR,Capita Business Travel Ltd,229279011,100.00,Consolidated Conference & Accommodation Costs 29/04/2013 - 12/05/2013,DE21 6BF,Admin
Food Standards Agency,Food Standards Agency,31/05/2013,Subsistence UK,Procurement,Capita Business Travel Ltd,229279011,286.00,Consolidated Conference & Accommodation Costs 29/04/2013 - 12/05/2013,DE21 6BF,Admin
Food Standards Agency,Food Standards Agency,31/05/2013,Subsistence UK,IT HoD,Capita Business Travel Ltd,229279011,577.20,Consolidated Conference & Accommodation Costs 29/04/2013 - 12/05/2013,DE21 6BF,Admin
Food Standards Agency,Food Standards Agency,31/05/2013,Subsistence UK,Security & Estates,Capita Business Travel Ltd,229279011,123.60,Consolidated Conference & Accommodation Costs 29/04/2013 - 12/05/2013,DE21 6BF,Admin
Food Standards Agency,Food Standards Agency,31/05/2013,Subsistence UK,Security & Estates,Capita Business Travel Ltd,229279011,123.60,Consolidated Conference & Accommodation Costs 29/04/2013 - 12/05/2013,DE21 6BF,Admin
Food Standards Agency,Food Standards Agency,31/05/2013,Subsistence UK,IT Information & Knowledge Management,Capita Business Travel Ltd,229279011,63.00,Consolidated Conference & Accommodation Costs 29/04/2013 - 12/05/2013,DE21 6BF,Admin
Food Standards Agency,Food Standards Agency,31/05/2013,Subsistence UK,Internal Audit,Capita Business Travel Ltd,229279011,70.00,Consolidated Conference & Accommodation Costs 29/04/2013 - 12/05/2013,DE21 6BF,Admin
Food Standards Agency,Food Standards Agency,31/05/2013,Subsistence UK,Internal Audit,Capita Business Travel Ltd,229279011,553.00,Consolidated Conference & Accommodation Costs 29/04/2013 - 12/05/2013,DE21 6BF,Admin
"Date Run: 06-JUN-13 04.29.09 PM --- Company Code : '17' , Payment Start Date : '01-MAY-2013' , Payment End Date : '31-MAY-2013'",,,,,,,,,,
